{"text_format":"1","workbook":"xlsx","n_sheets":2,"sheets":["Commande hebdomadaire des purée","Feuil1"],"not_rendered":{"charts":0,"images":1,"macros":1,"external_links":0,"defined_names":1,"comments":0,"pivot_tables":0},"unopened":[],"bounds":{"document_bytes":16777216,"sheet_cells":100000,"rows_first":2000,"rows_last":500,"rows_between":2000,"halvings":0,"cell_chars":16384,"cell_head_chars":4096},"cells_cut":0,"cells_raw":0,"read":"whole","date_system":"1900"}

{"sheet":"Commande hebdomadaire des purée","index":0,"n_rows":90,"n_cols":46,"rows_kept":90,"cut":false,"hidden":false,"merged":[[0,1,0,4],[1,1,1,5]]}
[null,"Commande hebdomadaire des purées du:",null,null,null,"28.06 au 02.08",null,null,null,null,null,null,null,null,null,null,null,null,null,null,null,null,null,null,null,null,null,null,null,null,null,null,null,null,null,null,null,null,null,null,null,null,null,null,null,"k"]
[null,"Site ou établissement:……………CAP BULLE…………………...…Semaine du:",null,null,null,null,"2021-08-02",{"$f":"G2+4","v":"2021-08-06"}]
[null,"VARIANTES","LUNDI","MARDI","MERCREDI","JEUDI","VENDREDI","Total",null,null,{"$f":"B90","v":"TYPES"},"VARIANTES","LUNDI","MARDI","MERCREDI","JEUDI","VENDREDI","TOTAL",null,null,null,null,null,null,null,null,null,null,null,null,null,null,null,null,"Type","VARIANTES","LUNDI","MARDI","MERCREDI","JEUDI","VENDREDI","TOTAL"]
[null,"Date",{"$f":"G2","v":"2021-08-02"},{"$f":"C4+1","v":"2021-08-03"},{"$f":"D4+1","v":"2021-08-04"},{"$f":"E4+1","v":"2021-08-05"},{"$f":"F4+1","v":"2021-08-06"},null,null,null,0,0,0,0,0,0,0,0]
[null,"Compotes",null,null,null,null,null,null,null,null,0,0,0,0,0,0,0,0,null,null,null,null,null,null,null,null,null,null,null,null,null,null,null,null,"Compotes","Abricot",310,0,370,190,270,{"$f":"AK5+AL5+AM5+AN5+AO5","v":1140}]
[null,"Pommes",1050,300,1000,550,550,{"$f":"C6+D6+E6+F6+G6","v":3450},null,null,0,0,0,0,0,0,0,0,null,null,null,null,null,null,null,null,null,null,null,null,null,null,null,null,"Compotes","Banane",100,90,625,0,335,{"$f":"AK6+AL6+AM6+AN6+AO6","v":1150}]
[null,"Poires",300,1000,null,1050,350,{"$f":"C7+D7+E7+F7+G7","v":2700},null,null,0,0,0,0,0,0,0,0,null,null,null,null,null,null,null,null,null,null,null,null,null,null,null,null,"Compotes","Framboise",0,0,0,0,0,0]
[null,"Abricot",null,null,400,200,250,{"$f":"C8+D8+E8+F8+G8","v":850},null,null,0,0,0,0,0,0,0,0,null,null,null,null,null,null,null,null,null,null,null,null,null,null,null,null,"Compotes","Kiwi",0,0,0,0,0,0]
[null,"Banane",100,100,600,null,350,{"$f":"C9+D9+E9+F9+G9","v":1150},null,null,0,0,0,0,0,0,0,0,null,null,null,null,null,null,null,null,null,null,null,null,null,null,null,null,"Compotes","Mangue",0,0,0,0,0,0]
[null,"Féculents",null,null,null,null,null,null,null,null,0,0,0,0,0,0,0,0,null,null,null,null,null,null,null,null,null,null,null,null,null,null,null,null,"Compotes","Nectarine",0,0,0,0,0,0]
[null,"Pommes de terre",450,150,250,350,150,{"$f":"C11+D11+E11+F11+G11","v":1350},null,null,0,0,0,0,0,0,0,0,null,null,null,null,null,null,null,null,null,null,null,null,null,null,null,null,"Compotes","Pêche",0,0,0,0,0,0]
[null,"Riz (mixé)",null,null,null,150,null,{"$f":"C12+D12+E12+F12+G12","v":150},null,null,0,0,0,0,0,0,0,0,null,null,null,null,null,null,null,null,null,null,null,null,null,null,null,null,"Compotes","Poire",0,955,0,1070,325,2350]
[null,"Petites pâtes (non mixées)",null,null,350,null,null,{"$f":"C13+D13+E13+F13+G13","v":350},null,null,0,0,0,0,0,0,0,0,null,null,null,null,null,null,null,null,null,null,null,null,null,null,null,null,"Compotes","Pomme",1030,300,1010,540,535,3415]
[null,"Semoule de maïs",null,300,null,null,300,{"$f":"C14+D14+E14+F14+G14","v":600},null,null,0,0,0,0,0,0,0,0,null,null,null,null,null,null,null,null,null,null,null,null,null,null,null,null,"Compotes","Prune",0,0,0,0,0,0]
[null,"Purées de légumes",null,null,null,null,null,null,null,null,0,0,0,0,0,0,0,0,null,null,null,null,null,null,null,null,null,null,null,null,null,null,null,null,"Compotes","Pruneaux",0,0,0,0,0,0]
[null,"Fenouil",null,600,null,350,300,{"$f":"C16+D16+E16+F16+G16","v":1250},null,null,0,0,0,0,0,0,0,0,null,null,null,null,null,null,null,null,null,null,null,null,null,null,null,null,"Compotes","Fraise",0,0,0,0,0,0]
[null,"Epinards",500,null,350,400,150,1400,null,null,0,0,0,0,0,0,0,0,null,null,null,null,null,null,null,null,null,null,null,null,null,null,null,null,"Compotes","Yoghourt",0,0,0,0,0,0]
[null,"Panais",250,null,700,null,100,1050,null,null,0,0,0,0,0,0,0,0,null,null,null,null,null,null,null,null,null,null,null,null,null,null,null,null,"Compotes","-",0,0,0,0,0,0]
[null,"Carottes",450,null,500,750,300,2000,null,null,0,0,0,0,0,0,0,0,null,null,null,null,null,null,null,null,null,null,null,null,null,null,null,null,"Féculents","PDT",455,120,260,355,110,{"$f":"AK19+AL19+AM19+AN19+AO19","v":1300}]
[null,"Romanesco",null,150,null,null,100,250,null,null,0,0,0,0,0,0,0,0,null,null,null,null,null,null,null,null,null,null,null,null,null,null,null,null,"Féculents","PDT Douce",0,0,0,0,0,{"$f":"AK20+AL20+AM20+AN20+AO20","v":0}]
[null,"Courgette",200,650,350,150,550,1900,null,null,0,0,0,0,0,0,0,0,null,null,null,null,null,null,null,null,null,null,null,null,null,null,null,null,"Féculents","Riz",0,0,0,150,0,150]
[null,"Purées de viandes",null,null,null,null,null,null,null,null,0,0,0,0,0,0,0,0,null,null,null,null,null,null,null,null,null,null,null,null,null,null,null,null,"Féculents","Semoule",0,305,0,0,300,605]
[null,"Volaille",null,100,100,100,50,{"$f":"C23+D23+E23+F23+G23","v":350},null,null,0,0,0,0,0,0,0,0,null,null,null,null,null,null,null,null,null,null,null,null,null,null,null,null,"Féculents","-",0,0,0,0,0,0]
[null,"Veau",100,null,null,null,null,{"$f":"C24+D24+E24+F24+G24","v":100},null,null,0,0,0,0,0,0,0,0,null,null,null,null,null,null,null,null,null,null,null,null,null,null,null,null,"Féculents","-",0,0,0,0,0,0]
[null,"Poisson",null,150,50,null,null,{"$f":"C25+D25+E25+F25+G25","v":200},null,null,0,0,0,0,0,0,0,0,null,null,null,null,null,null,null,null,null,null,null,null,null,null,null,null,"Féculents","-",0,0,0,0,0,0]
[null,"Bœuf",null,null,null,50,100,{"$f":"C26+D26+E26+F26+G26","v":150},null,null,0,0,0,0,0,0,0,0,null,null,null,null,null,null,null,null,null,null,null,null,null,null,null,null,"Féculents","-",0,0,0,0,0,0]
[null,null,null,null,null,null,null,null,null,null,0,0,0,0,0,0,0,0,null,null,null,null,null,null,null,null,null,null,null,null,null,null,null,null,"Féculents","-",0,0,0,0,0,0]
[null,null,null,null,null,null,null,null,null,null,0,0,0,0,0,0,0,0,null,null,null,null,null,null,null,null,null,null,null,null,null,null,null,null,"Féculents","-",0,0,0,0,0,0]
[null,null,null,null,null,null,null,null,null,null,0,0,0,0,0,0,0,0,null,null,null,null,null,null,null,null,null,null,null,null,null,null,null,null,"Féculents","-",0,0,0,0,0,0]
[null,null,null,null,null,null,null,null,null,null,0,0,0,0,0,0,0,0,null,null,null,null,null,null,null,null,null,null,null,null,null,null,null,null,"Féculents","-",0,0,0,0,0,0]
[null,null,null,null,null,null,null,null,null,null,0,0,0,0,0,0,0,0,null,null,null,null,null,null,null,null,null,null,null,null,null,null,null,null,"Purées de légumes","Brocolis",0,0,0,0,0,{"$f":"AK31+AL31+AM31+AN31+AO31","v":0}]
[null,null,null,null,null,null,null,null,null,null,0,0,0,0,0,0,0,0,null,null,null,null,null,null,null,null,null,null,null,null,null,null,null,null,"Purées de légumes","Carottes",425,0,480,750,280,1935]
[null,null,null,null,null,null,null,null,null,null,0,0,0,0,0,0,0,0,null,null,null,null,null,null,null,null,null,null,null,null,null,null,null,null,"Purées de légumes","Choux-fleurs",0,0,0,0,0,0]
[null,null,null,null,null,null,null,null,null,null,0,0,0,0,0,0,0,{"$f":"I121","v":0},null,null,null,null,null,null,null,null,null,null,null,null,null,null,null,null,"Purées de légumes","Courge",0,0,0,0,0,0]
[null,null,null,null,null,null,null,null,null,null,{"$f":"B122","v":0},0,0,0,0,0,0,0,null,null,null,null,null,null,null,null,null,null,null,null,null,null,null,null,"Purées de légumes","Courgette",180,625,360,130,345,1640]
[null,null,null,null,null,null,null,null,null,null,null,null,null,null,null,null,null,null,null,null,null,null,null,null,null,null,null,null,null,null,null,null,null,null,"Purées de légumes","Epinard",510,0,350,395,140,1395]
[null,null,null,null,null,null,null,null,null,null,null,null,null,null,null,null,null,null,null,null,null,null,null,null,null,null,null,null,null,null,null,null,null,null,"Purées de légumes","Fenouil",0,570,0,335,305,1210]
[null,null,null,null,null,null,null,null,null,null,null,null,null,null,null,null,null,null,null,null,null,null,null,null,null,null,null,null,null,null,null,null,null,null,"Purées de légumes","Haricots",0,0,0,0,0,0]
[null,null,null,null,null,null,null,null,null,null,null,null,null,null,null,null,null,null,null,null,null,null,null,null,null,null,null,null,null,null,null,null,null,null,"Purées de légumes","Petits pois",0,0,0,0,0,0]
[null,null,null,null,null,null,null,null,null,null,null,null,null,null,null,null,null,null,null,null,null,null,null,null,null,null,null,null,null,null,null,null,null,null,"Purées de légumes","Panais",245,0,700,0,75,1020]
[null,null,null,null,null,null,null,null,null,null,null,null,null,null,null,null,null,null,null,null,null,null,null,null,null,null,null,null,null,null,null,null,null,null,"Purées de légumes","Romanesco",0,185,0,0,115,300]
[null,null,null,null,null,null,null,null,null,null,null,null,null,null,null,null,null,null,null,null,null,null,null,null,null,null,null,null,null,null,null,null,null,null,"Purées de légumes","Côte de bette",0,0,0,0,0,0]
[null,null,null,null,null,null,null,null,null,null,null,null,null,null,null,null,null,null,null,null,null,null,null,null,null,null,null,null,null,null,null,null,null,null,"Purées de légumes","Topinambour",0,0,0,0,0]
[null,null,null,null,null,null,null,null,null,null,null,null,null,null,null,null,null,null,null,null,null,null,null,null,null,null,null,null,null,null,null,null,null,null,"Purées de légumes","Chou-pomme",0,0,0,0,0,{"$f":"AK44+AL44+AM44+AN44+AO44","v":0}]
[null,null,null,null,null,null,null,null,null,null,null,null,null,null,null,null,null,null,null,null,null,null,null,null,null,null,null,null,null,null,null,null,null,null,"Purées de viandes","Bœuf",0,0,0,60,90,{"$f":"AK45+AL45+AM45+AN45+AO45","v":150}]
[null,null,null,null,null,null,null,null,null,null,null,null,null,null,null,null,null,null,null,null,null,null,null,null,null,null,null,null,null,null,null,null,null,null,"Purées de viandes","Poisson",0,140,50,0,0,{"$f":"AK46+AL46+AM46+AN46+AO46","v":190}]
[null,null,null,null,null,null,null,null,null,null,null,null,null,null,null,null,null,null,null,null,null,null,null,null,null,null,null,null,null,null,null,null,null,null,"Purées de viandes","Veau",100,0,0,0,0,100]
[null,null,null,null,null,null,null,null,null,null,null,null,null,null,null,null,null,null,null,null,null,null,null,null,null,null,null,null,null,null,null,null,null,null,"Purées de viandes","Volaille",0,90,90,100,10,290]
[null,null,null,null,null,null,null,null,null,null,null,null,null,null,null,null,null,null,null,null,null,null,null,null,null,null,null,null,null,null,null,null,null,null,"Purées de viandes","Kiri",60,0,0,0,0,60]
[null,null,null,null,null,null,null,null,null,null,null,null,null,null,null,null,null,null,null,null,null,null,null,null,null,null,null,null,null,null,null,null,null,null,"Purées de viandes","-",0,0,0,0,0,0]
[null,null,null,null,null,null,null,null,null,null,null,null,null,null,null,null,null,null,null,null,null,null,null,null,null,null,null,null,null,null,null,null,null,null,"Purées de viandes","-",0,0,0,0,0,0]
[null,null,null,null,null,null,null,null,null,null,null,null,null,null,null,null,null,null,null,null,null,null,null,null,null,null,null,null,null,null,null,null,null,null,"Purées de viandes","-",0,0,0,0,0,0]
[null,null,null,null,null,null,null,null,null,null,null,null,null,null,null,null,null,null,null,null,null,null,null,null,null,null,null,null,null,null,null,null,null,null,"Purées de viandes","-",0,0,0,0,0,0]
[null,null,null,null,null,null,null,null,null,null,null,null,null,null,null,null,null,null,null,null,null,null,null,null,null,null,null,null,null,null,null,null,null,null,"Purées de viandes",null,null,null,null,null,null,0]
[null,null,null,null,null,null,null,null,null,null,null,null,null,null,null,null,null,null,null,null,null,null,null,null,null,null,null,null,null,null,null,null,null,null,"Purées de viandes",null,null,null,null,null,null,0]
[null,null,null,null,null,null,null,null,null,null,null,null,null,null,null,null,null,null,null,null,null,null,null,null,null,null,null,null,null,null,null,null,null,null,"Purées de viandes",null,null,null,null,null,null,0]
[null,null,null,null,null,null,null,null,null,null,null,null,null,null,null,null,null,null,null,null,null,null,null,null,null,null,null,null,null,null,null,null,null,null,"Purées de viandes"]
[null,null,null,null,null,null,null,null,null,null,null,null,null,null,null,null,null,null,null,null,null,null,null,null,null,null,null,null,null,null,null,null,null,null,"Purées de viandes",null,null,null,null,null,null,{"$f":"AK58+AL58+AM58+AN58+AO58","v":0}]
[]
[]
[]
[]
[]
[]
[]
[]
[]
[]
[]
[]
[]
[]
[]
[]
[]
[]
[]
[]
[]
[]
[]
[]
[]
[]
[]
[]
[]
[]
[]
[null,"TYPES","VARIANTES","LUNDI","MARDI","MERCREDI","JEUDI","VENDREDI","TOTAL"]

{"sheet":"Feuil1","index":1,"n_rows":33,"n_cols":18,"rows_kept":33,"cut":false,"hidden":false,"merged":[[0,1,0,4],[1,1,1,5]]}
[null,"Commande hebdomadaire des purées du:",null,null,null,"28.06 au 02.08"]
[null,"Site ou établissement:……………CAP BULLE…………………...…Semaine du:",null,null,null,null,"2021-08-02",{"$f":"G2+4","v":"2021-08-06"}]
[null,"VARIANTES","LUNDI","MARDI","MERCREDI","JEUDI","VENDREDI","Total",null,null,{"$f":"B90","v":0},0,0,0,0,0,0,0]
[null,"Date",{"$f":"G2","v":"2021-08-02"},{"$f":"C4+1","v":"2021-08-03"},{"$f":"D4+1","v":"2021-08-04"},{"$f":"E4+1","v":"2021-08-05"},{"$f":"F4+1","v":"2021-08-06"},null,null,null,0,0,0,0,0,0,0,0]
[null,"Compotes",null,null,null,null,null,null,null,null,0,0,0,0,0,0,0,0]
[null,"Pommes",1050,300,1000,550,550,{"$f":"C6+D6+E6+F6+G6","v":3450},null,null,0,0,0,0,0,0,0,0]
[null,"Poires",300,1000,null,1050,350,{"$f":"C7+D7+E7+F7+G7","v":2700},null,null,0,0,0,0,0,0,0,0]
[null,"Abricot",null,null,400,200,250,{"$f":"C8+D8+E8+F8+G8","v":850},null,null,0,0,0,0,0,0,0,0]
[null,"Banane",100,100,600,null,350,{"$f":"C9+D9+E9+F9+G9","v":1150},null,null,0,0,0,0,0,0,0,0]
[null,"Féculents",null,null,null,null,null,null,null,null,0,0,0,0,0,0,0,0]
[null,"Pommes de terre",450,150,250,350,150,{"$f":"C11+D11+E11+F11+G11","v":1350},null,null,0,0,0,0,0,0,0,0]
[null,"Riz (mixé)",null,null,null,150,null,{"$f":"C12+D12+E12+F12+G12","v":150},null,null,0,0,0,0,0,0,0,0]
[null,"Petites pâtes (non mixées)",null,null,350,null,null,{"$f":"C13+D13+E13+F13+G13","v":350},{"$f":"SUM(G6:G9)","v":1500},null,0,0,0,0,0,0,0,0]
[null,"Semoule de maïs",null,300,null,null,300,{"$f":"C14+D14+E14+F14+G14","v":600},null,null,0,0,0,0,0,0,0,0]
[null,"Purées de légumes",null,null,null,null,null,null,null,null,0,0,0,0,0,0,0,0]
[null,"Fenouil",null,600,null,350,300,{"$f":"C16+D16+E16+F16+G16","v":1250},null,null,0,0,0,0,0,0,0,0]
[null,"Epinards",500,null,350,400,150,1400,null,null,0,0,0,0,0,0,0,0]
[null,"Panais",250,null,700,null,100,1050,null,null,0,0,0,0,0,0,0,0]
[null,"Carottes",450,null,500,750,300,2000,null,null,0,0,0,0,0,0,0,0]
[null,"Romanesco",null,150,null,null,100,250,null,null,0,0,0,0,0,0,0,0]
[null,"Courgette",200,650,350,150,550,1900,null,null,0,0,0,0,0,0,0,0]
[null,"Purées de viandes",null,null,null,null,null,null,null,null,0,0,0,0,0,0,0,0]
[null,"Volaille",null,100,100,100,50,{"$f":"C23+D23+E23+F23+G23","v":350},null,null,0,0,0,0,0,0,0,0]
[null,"Veau",100,null,null,null,null,{"$f":"C24+D24+E24+F24+G24","v":100},null,null,0,0,0,0,0,0,0,0]
[null,"Poisson",null,150,50,null,null,{"$f":"C25+D25+E25+F25+G25","v":200},null,null,0,0,0,0,0,0,0,0]
[null,"Bœuf",null,null,null,50,100,{"$f":"C26+D26+E26+F26+G26","v":150},null,null,0,0,0,0,0,0,0,0]
[null,null,null,null,null,null,null,null,null,null,0,0,0,0,0,0,0,0]
[null,null,null,null,null,null,null,null,null,null,0,0,0,0,0,0,0,0]
[null,null,null,null,null,null,null,null,null,null,0,0,0,0,0,0,0,0]
[null,null,null,null,null,null,null,null,null,null,0,0,0,0,0,0,0,0]
[null,null,null,null,null,null,null,null,null,null,0,0,0,0,0,0,0,0]
[null,null,null,null,null,null,null,null,null,null,0,0,0,0,0,0,0,0]
[null,null,null,null,null,null,null,null,null,null,0,0,0,0,0,0,0,0]